fUSD/lending_fUSD_20240105
["ID","MTS","AMOUNT","RATE_DAILY","PERIOD"]
[310319125,1704471190239,-1162.79,0.00033972,3]
[310319126,1704471190248,-500.0,0.00033972,3]
[310319127,1704471190257,-500.0,0.00033972,3]
[310319128,1704471190266,-500.0,0.00033972,3]
[310319129,1704471190276,-774.96,0.00033972,3]
[310319130,1704471190285,-822.37,0.00033972,3]
[310319131,1704471190294,-523.37,0.00033972,3]
[310319132,1704471190303,-500.0,0.00033972,3]
[310319133,1704471190312,-1372.88,0.00033972,3]
[310319134,1704471190322,-541.67,0.00033972,3]
[310319135,1704471190331,-753.94,0.00033972,3]
[310319136,1704471190340,-653.2,0.00033972,3]
[310319137,1704471190350,-515.93,0.00033972,3]
[310319138,1704471190359,-500.0,0.00033972,3]
[310319139,1704471190369,-1253.1,0.00033972,3]
[310319140,1704471190379,-500.0,0.00033972,3]
[310319141,1704471190389,-1238.19,0.00033972,3]
[310319142,1704471190398,-772.08,0.00033972,3]
[310319143,1704471190407,-500.0,0.00033972,3]
[310319144,1704471190418,-727.02,0.00033972,3]
[310319145,1704471190428,-607.07186323,0.00033972,3]
[310319146,1704471190438,-947.64,0.00033972,3]
[310319147,1704471190448,-500.0,0.00033972,3]
[310319148,1704471190458,-644.36,0.00033972,3]
[310319149,1704471190468,-695.57,0.00033972,3]
[310319150,1704471190477,-662.68,0.00033972,3]
[310319151,1704471190486,-500.0,0.00033972,3]
[310319152,1704471190495,-500.0,0.00033972,3]
[310319153,1704471190504,-500.0,0.00033972,3]
[310319154,1704471190513,-606.21,0.00033972,3]
[310319155,1704471190522,-500.0,0.00033972,3]
[310319156,1704471190531,-1236.18,0.00033972,3]
[310319157,1704471190541,-241.16954933,0.00033972,3]
[310319158,1704471190550,-489.65957433,0.00033972,3]
[310319159,1704471190560,-947.15,0.00033972,3]
[310319160,1704471190569,-500.0,0.00033972,3]
[310319161,1704471190578,-500.59,0.00033972,3]
[310319162,1704471190588,-625.62,0.00033972,3]
[310319163,1704471190597,-545.24,0.00033972,3]
[310319164,1704471190606,-637.82,0.00033972,3]
[310319165,1704471190615,-530.66,0.00033972,3]
[310319166,1704471190625,-500.0,0.00033972,3]
[310319167,1704471190635,-500.0,0.00033972,3]
[310319168,1704471190644,-500.0,0.00033972,3]
[310319169,1704471190653,-800.13,0.00033972,3]
[310319170,1704471190662,-500.0,0.00033972,3]
[310319171,1704471190671,-1387.56,0.00033972,3]
[310319172,1704471190681,-500.0,0.00033972,3]
[310319173,1704471190690,-626.55,0.00033972,3]
[310319174,1704471190698,-1366.99,0.00033972,3]
[310319175,1704471190707,-797.63,0.00033972,3]
[310319176,1704471190717,-500.0,0.00033972,3]
[310319177,1704471190727,-500.0,0.00033972,3]
[310319178,1704471190737,-500.0,0.00033972,3]
[310319179,1704471190746,-703.77,0.00033972,3]
[310319180,1704471190758,-500.0,0.00033972,3]
[310319181,1704471190768,-581.02,0.00033972,3]
[310319182,1704471190778,-1360.29,0.00033972,3]
[310319183,1704471190788,-500.0,0.00033972,3]
[310319184,1704471190798,-531.42,0.00033972,3]
[310319185,1704471190807,-700.18,0.00033972,3]
[310319186,1704471190817,-500.0,0.00033972,3]
[310319187,1704471190826,-500.0,0.00033972,3]
[310319188,1704471190836,-1036.76,0.00033972,3]
[310319189,1704471190845,-962.57,0.00033972,3]
[310319190,1704471190854,-1289.38,0.00033972,3]
[310319191,1704471190862,-813.88,0.00033972,3]
[310319192,1704471190871,-4950.03,0.00033972,3]
[310319193,1704471190881,-500.0,0.00033972,3]
[310319194,1704471190890,-500.0,0.00033972,3]
[310319195,1704471190899,-734.2,0.00033972,3]
[310319196,1704471190908,-413.30138312,0.00033972,3]
[310319197,1704471190917,-712.3,0.00033972,3]
[310319198,1704471190926,-573.47,0.00033972,3]
[310319199,1704471190935,-834.43,0.00033972,3]
[310319200,1704471190944,-1459.15,0.00033972,3]
[310319201,1704471190953,-753.46,0.00033972,3]
[310319202,1704471190961,-1169.4,0.00033972,3]
[310319203,1704471190971,-564.11,0.00033972,3]
[310319204,1704471190981,-598.84,0.00033972,3]
[310319205,1704471190991,-1096.24,0.00033972,3]
[310319206,1704471191000,-1425.41,0.00033972,3]
[310319207,1704471191009,-6105.28,0.00033972,3]
[310319208,1704471191019,-293.69295545,0.00033972,3]
[310319209,1704471191029,-2530.93,0.00033972,3]
[310319210,1704471191038,-500.0,0.00033972,3]
[310319211,1704471191049,-820.35,0.00033972,3]
[310319212,1704471191059,-1820.15,0.00033972,3]
[310319213,1704471191072,-1454.88,0.00033972,3]
[310319214,1704471191082,-848.25,0.00033972,3]
[310319215,1704471191091,-500.0,0.00033972,3]
[310319216,1704471191101,-3529.52,0.00033972,3]
[310319217,1704471191110,-1261.77,0.00033972,3]
[310319218,1704471191119,-500.0,0.00033972,3]
[310319219,1704471191129,-522.36,0.00033972,3]
[310319220,1704471191138,-673.04,0.00033972,3]
[310319221,1704471191147,-500.0,0.00033972,3]
[310319222,1704471191157,-1294.63,0.00033972,3]
[310319223,1704471191166,-1207.05,0.00033972,3]
[310319224,1704471191175,-543.14,0.00033972,3]
[310319225,1704471191185,-806.5,0.00033972,3]
[310319226,1704471191195,-2710.43,0.00033972,3]
[310319227,1704471191205,-500.0,0.00033972,3]
[310319228,1704471191214,-731.44,0.00033972,3]
[310319229,1704471191224,-500.0,0.00033972,3]
[310319230,1704471191233,-519.5,0.00033972,3]
[310319231,1704471191242,-2046.64,0.00033972,3]
[310319232,1704471191252,-762.26,0.00033972,3]
[310319233,1704471191261,-620.31,0.00033972,3]
[310319234,1704471191270,-1317.65,0.00033972,3]
[310319235,1704471191279,-5333.49,0.00033972,3]
[310319236,1704471191289,-978.21,0.00033972,3]
[310319237,1704471191298,-1254.61,0.00033972,3]
[310319238,1704471191308,-500.0,0.00033972,3]
[310319239,1704471191319,-802.02,0.00033972,3]
[310319240,1704471191328,-1336.26,0.00033972,3]
[310319241,1704471191338,-537.87,0.00033972,3]
[310319242,1704471191346,-500.0,0.00033972,3]
[310319243,1704471191355,-3771.03,0.00033972,3]
[310319244,1704471191364,-525.81,0.00033972,3]
[310319245,1704471191374,-776.01,0.00033972,3]
[310319246,1704471191385,-3060.91,0.00033972,3]
[310319247,1704471191393,-13727.19,0.00033972,3]
[310319248,1704471191402,-1204.63,0.00033972,3]
[310319249,1704471191411,-769.65,0.00033972,3]
[310319250,1704471191422,-537.11,0.00033972,3]
[310319251,1704471191431,-4626.56,0.00033972,3]
[310319252,1704471191441,-152.40493953,0.00033972,3]
[310319253,1704471191452,-1733.54,0.00033972,3]
[310319254,1704471191462,-3709.47,0.00033972,3]
[310319255,1704471191472,-3029.39,0.00033972,3]
[310319256,1704471191481,-9181.09,0.00033972,3]
[310319257,1704471191491,-5426.23,0.00033972,3]
[310319258,1704471191501,-5834.39,0.00033972,3]
[310319259,1704471191512,-740.27,0.00033972,3]
[310319260,1704471191521,-799.71,0.00033972,3]
[310319261,1704471191530,-500.0,0.00033972,3]
[310319262,1704471191538,-296.05333787,0.00033972,3]
[310319263,1704471191547,-725.16,0.00033972,3]
[310319264,1704471191557,-4345.18,0.00033972,3]
[310319265,1704471191568,-30937.37,0.00033972,3]
[310319266,1704471191577,-821.62,0.00033972,3]
[310319267,1704471191586,-749.5,0.00033972,3]
[310319268,1704471191595,-675.77,0.00033972,3]
[310319269,1704471191605,-900.8,0.00033972,3]
[310319270,1704471191620,-699.84,0.00033972,3]
[310319271,1704471191630,-500.0,0.00033972,3]
[310319272,1704471191640,-635.22705038,0.00033972,3]
[310319273,1704471191649,-1420.61,0.00033972,3]
[310319274,1704471191659,-605.12,0.00033972,3]
[310319275,1704471191669,-809.12,0.00033972,3]
[310319276,1704471191679,-1182.33,0.00033972,3]
[310319277,1704471191688,-500.0,0.00033972,3]
[310319278,1704471191698,-3777.28,0.00033972,3]
[310319279,1704471191706,-571.4,0.00033972,3]
[310319280,1704471191716,-385.36313712,0.00033972,3]
[310319281,1704471191726,-1058.15,0.00033972,3]
[310319282,1704471191736,-830.16,0.00033972,3]
[310319283,1704471191745,-2249.97,0.00033972,3]
[310319284,1704471191755,-1921.66,0.00033972,3]
[310319285,1704471191765,-1277.02,0.00033972,3]
[310319286,1704471191775,-1078.96,0.00033972,3]
[310319287,1704471191784,-2596.11,0.00033972,3]
[310319288,1704471191794,-652.62,0.00033972,3]
[310319289,1704471191803,-915.92,0.00033972,3]
[310319290,1704471191813,-293.50807133,0.00033972,3]
[310319291,1704471191822,-500.0,0.00033972,3]
[310319292,1704471191831,-582.86,0.00033972,3]
[310319293,1704471191841,-1916.84,0.00033972,3]
[310319294,1704471191850,-790.64,0.00033972,3]
[310319295,1704471191859,-500.0,0.00033972,3]
[310319296,1704471191869,-3952.46,0.00033972,3]
[310319297,1704471191879,-500.0,0.00033972,3]
[310319298,1704471191889,-4595.39,0.00033972,3]
[310319299,1704471191898,-756.94,0.00033972,3]
[310319300,1704471191908,-1252.88,0.00033972,3]
[310319301,1704471191919,-500.0,0.00033972,3]
[310319302,1704471191928,-717.12,0.00033972,3]
[310319303,1704471191938,-964.19,0.00033972,3]
[310319304,1704471191948,-1622.29,0.00033972,3]
[310319305,1704471191957,-1254.57,0.00033972,3]
[310319306,1704471191967,-6081.11,0.00033972,3]
[310319307,1704471191978,-1984.28,0.00033972,3]
[310319308,1704471191987,-2229.13,0.00033972,3]
[310319309,1704471191998,-500.0,0.00033972,3]
[310319310,1704471192009,-511.35,0.00033972,3]
[310319311,1704471192018,-629.9,0.00033972,3]
[310319312,1704471192027,-730.24,0.00033972,3]
[310319313,1704471192037,-529.0,0.00033972,3]
[310319314,1704471192047,-839.46,0.00033972,3]
[310319315,1704471192056,-1375.91,0.00033972,3]
[310319316,1704471192067,-500.0,0.00033972,3]
[310319317,1704471192076,-11940.29,0.00033972,3]
[310319318,1704471192086,-1622.69,0.00033972,3]
[310319319,1704471192096,-5893.72,0.00033972,3]
[310319320,1704471192106,-2605.01,0.00033972,3]
[310319321,1704471192116,-540.29,0.00033972,3]
[310319322,1704471192125,-1045.96,0.00033972,3]
[310319323,1704471192135,-500.0,0.00033972,3]
[310319324,1704471192145,-608.68,0.00033972,3]
[310319325,1704471192154,-7863.2,0.00033972,3]
[310319326,1704471192163,-713.7,0.00033972,3]
[310319327,1704471192173,-381.78,0.00033972,3]
[310319328,1704471192184,-2294.09,0.00033972,3]
[310319329,1704471192194,-543.11,0.00033972,3]
[310319330,1704471192204,-3601.71,0.00033972,3]
[310319331,1704471192214,-647.48,0.00033972,3]
[310319332,1704471192223,-500.0,0.00033972,3]
[310319333,1704471192232,-1603.38,0.00033972,3]
[310319334,1704471192242,-500.0,0.00033972,3]
[310319335,1704471192252,-1192.53,0.00033972,3]
[310319336,1704471192262,-618.49,0.00033972,3]
[310319337,1704471192271,-2938.06,0.00033972,3]
[310319338,1704471192281,-1744.78,0.00033972,3]
[310319339,1704471192290,-666.36,0.00033972,3]
[310319340,1704471192300,-770.23,0.00033972,3]
[310319341,1704471192310,-2064.43,0.00033972,3]
[310319342,1704471192320,-5976.75,0.00033972,3]
[310319343,1704471192330,-526.45,0.00033972,3]
[310319344,1704471192340,-554.78,0.00033972,3]
[310319345,1704471192349,-770.2,0.00033972,3]
[310319346,1704471192359,-5218.54,0.00033972,3]
[310319347,1704471192368,-1624.24,0.00033972,3]
[310319348,1704471192377,-650.01,0.00033972,3]
[310319349,1704471192387,-500.0,0.00033972,3]
[310319350,1704471192397,-657.7,0.00033972,3]
[310319351,1704471192406,-500.0,0.00033972,3]
[310319352,1704471192416,-2564.8,0.00033972,3]
[310319353,1704471192425,-912.23,0.00033972,3]
[310319354,1704471192434,-733.59,0.00033972,3]
[310319355,1704471192443,-701.65,0.00033972,3]
[310319356,1704471192452,-1151.0,0.00033972,3]
[310319357,1704471192462,-788.16,0.00033972,3]
[310319358,1704471192471,-500.0,0.00033972,3]
[310319359,1704471192481,-1833.74,0.00033972,3]
[310319360,1704471192490,-1286.65,0.00033972,3]
[310319361,1704471192500,-1365.11,0.00033972,3]
[310319362,1704471192510,-1004.41,0.00033972,3]
[310319363,1704471192519,-1188.06,0.00033972,3]
[310319364,1704471192528,-500.0,0.00033972,3]
[310319365,1704471192538,-500.0,0.00033972,3]
[310319366,1704471192547,-500.0,0.00033972,3]
[310319367,1704471192556,-500.0,0.00033972,3]
[310319368,1704471192566,-889.44,0.00033972,3]
[310319369,1704471192575,-718.53,0.00033972,3]
[310319370,1704471192585,-1229.01,0.00033972,3]
[310319371,1704471192594,-799.46,0.00033972,3]
[310319372,1704471192604,-2168.33,0.00033972,3]
[310319373,1704471192613,-389.10252195,0.00033972,3]
[310319374,1704471192624,-1440.65,0.00033972,3]
[310319375,1704471192634,-1007.17,0.00033972,3]
[310319376,1704471192643,-1492.25,0.00033972,3]
[310319377,1704471192653,-1310.28,0.00033972,3]
[310319378,1704471192664,-1033.01,0.00033972,3]
[310319379,1704471192673,-500.0,0.00033972,3]
[310319380,1704471192683,-8762.76,0.00033972,3]
[310319381,1704471192693,-1037.25,0.00033972,3]
[310319382,1704471192703,-1254.6,0.00033972,3]
[310319383,1704471192713,-500.0,0.00033972,3]
[310319384,1704471192722,-1235.07,0.00033972,3]
[310319385,1704471192732,-176.7345593,0.00033972,3]
[310319386,1704471192742,-500.0,0.00033972,3]
[310319387,1704471192752,-1231.65,0.00033972,3]
[310319388,1704471192761,-721.62,0.00033972,3]
[310319389,1704471192770,-2988.81,0.00033972,3]
[310319390,1704471192779,-1078.8,0.00033972,3]
[310319391,1704471192789,-500.0,0.00033972,3]
[310319392,1704471192799,-8593.4,0.00033972,3]
[310319393,1704471192808,-1175.89,0.00033972,3]
[310319394,1704471192818,-858.78,0.00033972,3]
[310319395,1704471192828,-500.0,0.00033972,3]
[310319396,1704471192837,-500.0,0.00033972,3]
[310319397,1704471192847,-508.85,0.00033972,3]
[310319398,1704471192857,-775.55,0.00033972,3]
[310319399,1704471192867,-13181.47,0.00033972,3]
[310319400,1704471192877,-2255.28,0.00033972,3]
[310319401,1704471192887,-1023.39,0.00033972,3]
[310319402,1704471192896,-500.0,0.00033972,3]
[310319403,1704471192906,-1387.79,0.00033972,3]
[310319404,1704471192916,-507.25,0.00033972,3]
[310319405,1704471192925,-615.53,0.00033972,3]
[310319406,1704471192934,-500.0,0.00033972,3]
[310319407,1704471192945,-2939.6,0.00033972,3]
[310319408,1704471192955,-500.0,0.00033972,3]
[310319409,1704471192964,-500.0,0.00033972,3]
[310319410,1704471192973,-534.68,0.00033972,3]
[310319411,1704471192982,-871.56,0.00033972,3]
[310319412,1704471192992,-735.74,0.00033972,3]
[310319413,1704471193001,-1299.1,0.00033972,3]
[310319414,1704471193010,-1104.41,0.00033972,3]
[310319415,1704471193020,-1102.46,0.00033972,3]
[310319416,1704471193029,-875.24,0.00033972,3]
[310319417,1704471193039,-2232.74,0.00033972,3]
[310319418,1704471193048,-500.0,0.00033972,3]
[310319419,1704471193058,-924.65,0.00033972,3]
[310319420,1704471193068,-500.0,0.00033972,3]
[310319421,1704471193078,-815.75,0.00033972,3]
[310319422,1704471193087,-733.7,0.00033972,2]
[310319423,1704471193096,-1000.0,0.00034,2]
[310319424,1704471193106,-1000.0,0.00034,4]
[310319425,1704471193115,-5670.83121175,0.00034,8]
[310319426,1704471193125,-200.0,0.00034,2]
[310319427,1704471193135,-100000.0,0.00034,2]
[310319428,1704471193144,-934.21404501,0.00034,2]
[310319429,1704471193153,-227.3755598,0.00034,5]
[310319430,1704471193163,-500.0,0.00034,6]
[310319431,1704471193172,-20000.0,0.00034,2]
[310319432,1704471193181,-1376.0,0.00034,2]
[310319433,1704471193190,-530.17709218,0.00034,7]
[310319434,1704471193200,-150.73,0.00034,2]
[310319435,1704471193210,-150.73,0.00034,2]
[310319436,1704471193220,-150.73,0.00034,2]
[310319437,1704471193229,-150.73,0.00034,2]
[310319438,1704471193238,-150.73,0.00034,2]
[310319439,1704471193248,-150.73,0.00034,2]
[310319440,1704471193257,-150.73,0.00034,2]
[310319441,1704471193266,-150.73,0.00034,2]
[310319442,1704471193275,-150.73,0.00034,2]
[310319443,1704471193285,-150.73,0.00034,2]
[310319444,1704471193293,-150.73,0.00034,2]
[310319445,1704471193303,-150.73,0.00034,2]
[310319446,1704471193313,-150.73,0.00034,2]
[310319447,1704471193322,-150.73,0.00034,2]
[310319448,1704471193332,-150.73,0.00034,2]
[310319449,1704471193341,-150.73,0.00034,2]
[310319450,1704471193350,-150.73,0.00034,2]
[310319451,1704471193360,-150.73,0.00034,2]
[310319452,1704471193369,-150.73,0.00034,2]
[310319453,1704471193378,-150.73,0.00034,2]
[310319454,1704471193388,-150.73,0.00034,2]
[310319455,1704471193397,-150.73,0.00034,2]
[310319456,1704471193406,-150.73,0.00034,2]
[310319457,1704471193415,-150.73,0.00034,2]
[310319458,1704471193425,-150.73,0.00034,2]
[310319459,1704471193434,-150.73,0.00034,2]
[310319460,1704471193442,-150.73,0.00034,2]
[310319461,1704471193452,-150.73,0.00034,2]
[310319462,1704471193461,-150.73,0.00034,2]
[310319463,1704471193470,-150.73,0.00034,2]
[310319464,1704471193479,-150.73,0.00034,2]
[310319465,1704471193488,-150.73,0.00034,2]
[310319466,1704471193498,-150.1,0.0003411,2]
[310319467,1704471193507,-1000.0,0.00034113,7]
[310319468,1704471193517,-1000.0,0.00034113,7]
[310319469,1704471193527,-1000.0,0.00034113,7]
[310319470,1704471193536,-1000.0,0.00034113,7]
[310319471,1704471193546,-1000.0,0.00034113,7]
[310319472,1704471193556,-1000.0,0.00034113,7]
[310319473,1704471193567,-1000.0,0.00034113,7]
[310319474,1704471193576,-241.34561814,0.00034113,7]
[310319475,1704471193585,-737.51805097,0.00034113,7]
[310319476,1704471193595,-390.27257771,0.00034113,7]
[310319477,1704471193604,-205.35649914,0.00034113,7]
[310319478,1704471193614,-195.53558963,0.00034113,3]
[310319479,1704471193623,-638.34507488,0.00034113,7]
[310319480,1704471193633,-1000.0,0.00034113,7]
[310319481,1704471193642,-1000.0,0.00034113,7]
[310319482,1704471193652,-500.0,0.00034113,7]
[310319483,1704471193661,-1000.0,0.00034113,7]
[310319484,1704471193670,-1000.0,0.00034113,7]
[310319485,1704471193679,-832.55684307,0.00034113,7]
[310319486,1704471193688,-1000.0,0.00034113,7]
[310319487,1704471193698,-488.64908275,0.00034113,7]
[310319488,1704471193707,-188.23668878,0.00034113,7]
[310319489,1704471193716,-1000.0,0.00034113,7]
[310319490,1704471193726,-1000.0,0.00034113,7]
[310319491,1704471193736,-1000.0,0.00034113,7]
[310319492,1704471193746,-1593.86331501,0.00034113,7]
[310319493,1704471193755,-1762.68592328,0.00034113,7]
[310319494,1704471193765,-1000.0,0.00034113,7]
[310319495,1704471193774,-432.77204135,0.00034113,7]
[310319496,1704471193784,-1000.0,0.00034113,7]
[310319497,1704471193794,-1817.21730417,0.00034113,7]
[310319498,1704471193804,-239.33883578,0.00034113,7]
[310319499,1704471193812,-2327.38959944,0.0003412,2]
[310319500,1704471193822,-4000.0,0.000342,2]
[310319501,1704471193835,-426.2970576,0.00034223,2]
[310319502,1704471193845,-500.0,0.00034246,3]
[310319503,1704471193855,-785.36,0.00034246,3]
[310319504,1704471193866,-500.0,0.00034246,7]
[310319505,1704471193877,-500.0,0.00034246,7]
[310319506,1704471193887,-533.6500165,0.00034246,3]
[310319507,1704471193895,-500.0,0.00034246,3]
[310319508,1704471193905,-1435.45,0.00034246,3]
[310319509,1704471193917,-500.0,0.00034246,3]
[310319510,1704471194088,-764.34,0.00034246,3]
[310319511,1704471194098,-500.0,0.00034246,3]
[310319512,1704471194108,-749.93,0.00034246,3]
[310319513,1704471194118,-512.27,0.00034246,3]
[310319514,1704471194127,-500.0,0.00034246,3]
[310319515,1704471194138,-790.83,0.00034246,3]
[310319516,1704471194148,-500.0,0.00034246,3]
[310319517,1704471194157,-203.40596067,0.00034246,3]
[310319518,1704471194167,-654.72,0.00034246,3]
[310319519,1704471194177,-490.71096496,0.00034246,3]
[310319520,1704471194187,-529.81,0.00034246,3]
[310319521,1704471194197,-553.69,0.00034246,3]
[310319522,1704471194207,-500.0,0.00034246,3]
[310319523,1704471194217,-381.53136621,0.00034246,3]
[310319524,1704471194226,-500.0,0.00034246,3]
[310319525,1704471194236,-500.0,0.00034246,3]
[310319526,1704471194246,-990.19,0.00034246,3]
[310319527,1704471194256,-500.0,0.00034246,3]
[310319528,1704471194267,-500.0,0.00034246,3]
[310319529,1704471194277,-500.0,0.00034246,3]
[310319530,1704471194287,-849.23,0.00034246,3]
[310319531,1704471194297,-500.0,0.00034246,3]
[310319532,1704471194307,-500.0,0.00034246,3]
[310319533,1704471194317,-500.0,0.00034246,3]
[310319534,1704471194330,-581.39,0.00034246,3]
[310319535,1704471194340,-500.0,0.00034246,3]
[310319536,1704471194350,-500.0,0.00034246,3]
[310319537,1704471194359,-500.0,0.00034246,3]
[310319538,1704471194370,-500.0,0.00034246,3]
[310319539,1704471194379,-760.0,0.00034246,3]
[310319540,1704471194389,-500.0,0.00034246,2]
[310319541,1704471194399,-671.05,0.00034246,3]
[310319542,1704471194409,-508.03,0.00034246,3]
[310319543,1704471194419,-500.0,0.00034246,3]
[310319544,1704471194429,-500.0,0.00034246,3]
[310319545,1704471194439,-500.0,0.00034246,3]
[310319546,1704471194448,-500.0,0.00034246,3]
[310319547,1704471194458,-500.0,0.00034246,3]
[310319548,1704471194467,-538.55,0.00034246,3]
[310319549,1704471194477,-979.16,0.00034246,3]
[310319550,1704471194487,-454.86745903,0.00034246,3]
[310319551,1704471194496,-1145.26,0.00034246,3]
[310319552,1704471194506,-702.19,0.00034246,3]
[310319553,1704471194516,-500.0,0.00034246,3]
[310319554,1704471194526,-518.33,0.00034246,3]
[310319555,1704471194536,-345.69358134,0.00034246,3]
[310319556,1704471194546,-500.0,0.00034246,3]
[310319557,1704471194556,-500.0,0.00034246,3]
[310319558,1704471194567,-500.0,0.00034246,3]
[310319559,1704471194577,-500.0,0.00034246,3]
[310319560,1704471194587,-501.69,0.00034246,3]
[310319561,1704471194597,-621.07,0.00034246,3]
[310319562,1704471194606,-500.0,0.00034246,3]
[310319563,1704471194616,-500.0,0.00034246,3]
[310319564,1704471194625,-1784.64,0.00034246,3]
[310319565,1704471194635,-500.0,0.00034246,3]
[310319566,1704471194645,-500.0,0.00034246,3]
[310319567,1704471194655,-466.27435263,0.00034246,3]
[310319568,1704471194664,-1054.73,0.00034246,3]
[310319569,1704471194674,-710.67,0.00034246,3]
[310319570,1704471194683,-500.0,0.00034246,3]
[310319571,1704471194692,-500.0,0.00034246,3]
[310319572,1704471194702,-1300.33,0.00034246,3]
[310319573,1704471194712,-526.89701767,0.00034246,3]
[310319574,1704471194722,-576.89,0.00034246,3]
[310319575,1704471194736,-500.0,0.00034246,3]
[310319576,1704471194745,-500.0,0.00034246,3]
[310319577,1704471194755,-1069.2,0.00034246,3]
[310319578,1704471194765,-500.0,0.00034246,3]
[310319579,1704471194775,-500.0,0.00034246,3]
[310319580,1704471194785,-625.92,0.00034246,3]
[310319581,1704471194794,-587.12,0.00034246,3]
[310319582,1704471194803,-704.44,0.00034246,3]
[310319583,1704471194813,-500.0,0.00034246,3]
[310319584,1704471194823,-942.24,0.00034246,3]
[310319585,1704471194832,-500.0,0.00034246,3]
[310319586,1704471194842,-500.0,0.00034246,3]
[310319587,1704471194852,-1261.61,0.00034246,3]
[310319588,1704471194862,-1117.05,0.00034246,3]
[310319589,1704471194873,-620.64900025,0.00034246,3]
[310319590,1704471194883,-500.0,0.00034246,3]
[310319591,1704471194893,-565.76,0.00034246,3]
[310319592,1704471194903,-925.99,0.00034246,3]
[310319593,1704471194913,-500.0,0.00034246,3]
[310319594,1704471194922,-500.0,0.00034246,3]
[310319595,1704471194932,-688.58,0.00034246,3]
[310319596,1704471194941,-500.0,0.00034246,3]
[310319597,1704471194951,-858.46,0.00034246,3]
[310319598,1704471194961,-500.0,0.00034246,3]
[310319599,1704471194970,-514.55806657,0.00034246,3]
[310319600,1704471194978,-500.0,0.00034246,3]
[310319601,1704471194988,-500.0,0.00034246,3]
[310319602,1704471194997,-500.0,0.00034246,3]
[310319603,1704471195007,-1444.56,0.00034246,3]
[310319604,1704471195017,-563.9,0.00034246,3]
[310319605,1704471195027,-500.0,0.00034246,3]
[310319606,1704471195036,-709.45,0.00034246,3]
[310319607,1704471195046,-500.0,0.00034246,3]
[310319608,1704471195056,-500.0,0.00034246,3]
[310319609,1704471195065,-520.35,0.00034246,3]
[310319610,1704471195074,-855.3,0.00034246,3]
[310319611,1704471195085,-500.0,0.00034246,3]
[310319612,1704471195095,-1959.68,0.00034246,3]
[310319613,1704471195105,-500.0,0.00034246,3]
[310319614,1704471195115,-610.92,0.00034246,3]
[310319615,1704471195125,-617.83,0.00034246,3]
[310319616,1704471195135,-270.40117282,0.00034246,3]
[310319617,1704471195146,-1510.28,0.00034246,3]
[310319618,1704471195155,-540.96,0.00034246,3]
[310319619,1704471195166,-618.06,0.00034246,3]
[310319620,1704471195176,-500.0,0.00034246,3]
[310319621,1704471195186,-1094.64,0.00034246,3]
[310319622,1704471195196,-656.56,0.00034246,3]
[310319623,1704471195205,-500.0,0.00034246,3]
[310319624,1704471195215,-1053.74,0.00034246,3]